bitfinex-derivatives/quotes_SOLF0:USTF0_20220106
["timestamp","ask_amount","ask_price","bid_price","bid_amount"]
[1641445678647,37.75442444,149.85,149.79,32.24579]
[1641445678847,37.75442444,149.85,149.79,4.581]
[1641445679847,12.05367815,149.87,149.79,4.581]
[1641445680653,12.05367815,149.87,149.77,55.32958]
[1641445680849,4.0,149.86,149.77,55.32958]
[1641445681047,12.05367815,149.87,149.78,6.80403455]
[1641445682049,49.80810259,149.87,149.77,55.32958]
[1641445682247,53.80810259,149.87,149.77,55.32958]
[1641445682451,49.80810259,149.87,149.77,55.32958]
[1641445683050,37.75442444,149.86,149.77,55.32958]
[1641445683951,49.80810259,149.87,149.77,55.32958]
[1641445684553,53.80810259,149.87,149.77,55.32958]
[1641445684753,4.0,149.86,149.77,27.66479]
[1641445684952,4.0,149.85,149.73,6.66777796]
[1641445685255,4.0,149.81,149.69,66.98603212]
[1641445685552,6.67044659,149.84,149.69,66.98603212]
[1641445685752,4.0,149.85,149.71,6.66866727]
[1641445686152,4.0,149.84,149.71,6.66866727]
[1641445686353,37.75442444,149.83,149.71,6.66866727]
[1641445686552,27.66479,149.82,149.72,27.66479]
[1641445687355,12.05367815,149.81,149.73,6.80422307]
[1641445689156,16.05367815,149.81,149.72,27.66479]
[1641445689356,12.05367815,149.81,149.72,27.66479]
[1641445689556,4.0,149.78,149.72,27.66479]
[1641445690162,4.0,149.79,149.72,27.66479]
[1641445690360,4.0,149.79,149.69,37.88479]
[1641445690558,31.66479,149.78,149.69,37.88479]
[1641445691563,27.66479,149.78,149.74,4.71648599]
[1641445692158,31.66479,149.78,149.74,4.71648599]
[1641445692562,27.66479,149.78,149.74,4.71648599]
[1641445692763,31.66479,149.78,149.74,4.71648599]
[1641445692964,4.0,149.75,149.7,6.80433609]
[1641445693162,4.0,149.74,149.7,6.80433609]
[1641445693363,4.0,149.74,149.7,3.609e-05]
[1641445693564,10.67668169,149.71,149.62,56.76603212]
[1641445693762,4.0,149.69,149.62,56.76603212]
[1641445693963,4.0,149.64,149.58,101.66690567]
[1641445694162,9.768,149.64,149.58,101.66690567]
[1641445694563,27.66479,149.62,149.58,101.66690567]
[1641445694764,4.0,149.63,149.58,6.67445353]
[1641445694963,4.0,149.64,149.58,6.67445353]
[1641445695171,31.66479,149.65,149.58,6.67445353]
[1641445695364,27.66479,149.65,149.58,6.67445353]
[1641445696564,31.66479,149.65,149.58,6.67445353]
[1641445697165,27.66479,149.65,149.58,6.67445353]
[1641445697567,31.66479,149.65,149.58,6.67445353]
[1641445698171,4.0,149.64,149.58,6.67445353]
[1641445698466,27.66479,149.65,149.58,6.67445353]
[1641445699367,27.66479,149.68,149.58,6.67445353]
[1641445699867,31.66479,149.68,149.58,6.67445353]
[1641445700566,27.66479,149.68,149.58,6.67445353]
[1641445700770,31.66479,149.68,149.58,6.67445353]
[1641445700967,27.66479,149.68,149.58,6.67445353]
[1641445701169,31.66479,149.68,149.58,6.67445353]
[1641445701370,27.66479,149.68,149.58,11.31845353]
[1641445701770,134.01,149.7,149.6,4.0]
[1641445701970,37.75442444,149.72,149.6,10.67356268]
[1641445702170,37.75442444,149.72,149.6,6.67356268]
[1641445702770,37.75442444,149.72,149.62,27.66479]
[1641445703071,27.66479,149.73,149.62,32.04679]
[1641445704571,27.66479,149.73,149.62,27.66479]
[1641445705273,27.66479,149.73,149.62,38.31479]
[1641445705476,27.66479,149.73,149.64,6.67200427]
[1641445705875,3.34944896,149.72,149.64,6.67200427]
[1641445706073,3.34944896,149.72,149.66,4.0]
[1641445706273,3.34944896,149.72,149.67,6.67066907]
[1641445706572,27.66479,149.73,149.67,10.67066907]
[1641445706773,26.34479,149.73,149.68,4.0]
[1641445706972,26.34479,149.73,149.68,17.05291906]
[1641445707174,26.34479,149.73,149.68,21.05291906]
[1641445707372,26.34479,149.73,149.68,17.05291906]
[1641445707573,37.75442444,149.8,149.7,10.66911201]
[1641445707872,66.3355,149.83,149.71,4.0]
[1641445707873,37.75442444,149.82,149.71,4.0]
[1641445708078,37.75442444,149.82,149.75,4.0]
[1641445708275,37.75442444,149.82,149.75,8.445]
[1641445708674,37.75442444,149.82,149.77,27.66479]
[1641445709274,3.34597338,149.85,149.77,27.66479]
[1641445709874,3.34597338,149.85,149.77,31.66479]
[1641445710078,3.34597338,149.85,149.78,4.0]
[1641445710278,3.34597338,149.85,149.78,7.07603668]
[1641445710679,3.34597338,149.85,149.8,27.66479]
[1641445710878,4.0,149.81,149.78,1.36803668]
[1641445711082,5.627,149.82,149.78,1.36803668]
[1641445711376,5.627,149.82,149.79,1.36803668]
[1641445711979,4.0,149.86,149.79,1.36803668]
[1641445712382,3.34597338,149.81,149.78,1.36803668]
[1641445713685,41.10039782,149.87,149.78,1.36803668]
[1641445714483,53.16556419,149.87,149.78,1.36803668]
[1641445714681,57.16556419,149.87,149.78,1.36803668]
[1641445714883,4.0,149.86,149.78,1.36803668]
[1641445715183,4.0,149.84,149.78,1.36803668]
[1641445715384,4.0,149.83,149.74,11.17761803]
[1641445715582,10.67111408,149.83,149.73,27.66479]
[1641445715783,6.67111408,149.83,149.73,27.66479]
[1641445716185,4.0,149.84,149.73,27.66479]
[1641445716383,4.0,149.85,149.73,27.66479]
[1641445716584,14.01575261,149.86,149.73,27.66479]
[1641445716884,27.66479,149.83,149.74,6.66755567]
[1641445717585,37.75442444,149.84,149.74,6.66755567]
[1641445717785,37.75442444,149.84,149.74,13.45501503]
[1641445717985,41.75442444,149.87,149.74,13.45501503]
[1641445718487,37.75442444,149.87,149.74,13.45501503]
[1641445718685,41.75442444,149.87,149.74,13.45501503]
[1641445718887,4.0,149.86,149.74,13.45501503]
[1641445719687,37.75442444,149.86,149.74,13.45501503]
[1641445720090,37.75442444,149.86,149.74,17.45501503]
[1641445720297,37.75442444,149.86,149.74,13.45501503]
[1641445720888,37.75442444,149.86,149.77,27.66479]
[1641445721095,53.81092016,149.87,149.77,32.90079]
[1641445721294,4.0,149.86,149.77,32.90079]
[1641445721494,49.81092016,149.87,149.77,32.90079]
[1641445722597,49.81092016,149.87,149.79,4.0]
[1641445723397,12.05649572,149.87,149.79,4.0]
[1641445723799,12.05649572,149.87,149.78,6.79238452]
[1641445724296,18.72583012,149.87,149.76,27.66479]
[1641445724496,22.72583012,149.87,149.76,27.66479]
[1641445725098,37.75442444,149.85,149.76,27.66479]
[1641445726402,37.75442444,149.85,149.76,20.12028054]
[1641445726801,65.41921444,149.85,149.76,20.12028054]
[1641445727001,65.41921444,149.85,149.74,65.0001]
[1641445727402,65.41921444,149.85,149.72,37.54479]
[1641445728202,12.05649572,149.84,149.73,6.79257229]
[1641445728501,12.05649572,149.84,149.73,13.44857229]
[1641445729403,16.05649572,149.84,149.73,13.44857229]
[1641445730003,10.67155914,149.82,149.73,6.79257229]
[1641445730204,13.87055914,149.82,149.73,6.79257229]
[1641445731004,27.66479,149.81,149.73,6.79257229]
[1641445731205,27.66479,149.81,149.72,6.79257229]
[1641445732610,12.05649572,149.8,149.72,6.79257229]
[1641445733912,12.05649572,149.8,149.73,4.0]
[1641445734113,12.05649572,149.8,149.73,5.598]
[1641445734316,12.05649572,149.8,149.74,4.0]
[1641445734514,12.05649572,149.8,149.75,4.0]
[1641445734715,37.75442444,149.84,149.74,21.05291906]
[1641445734917,37.75442444,149.84,149.75,31.66479]
[1641445735314,37.75442444,149.84,149.75,27.66479]
[1641445735616,37.75442444,149.84,149.75,31.66479]
[1641445735815,27.66479,149.85,149.76,6.79257229]
[1641445736817,12.0648546,149.84,149.76,6.79257229]
[1641445739018,27.66479,149.85,149.76,6.79257229]
[1641445739218,27.66479,149.85,149.76,11.96457229]
[1641445739420,27.66479,149.85,149.76,15.96457229]
[1641445739619,27.66479,149.85,149.76,11.96457229]
[1641445740320,4.0,149.84,149.76,6.79257229]
[1641445740520,4.508,149.84,149.76,6.79257229]
[1641445741620,16.57261981,149.84,149.76,6.79257229]
[1641445742822,12.06461981,149.84,149.76,6.79257229]
[1641445743022,12.06461981,149.84,149.76,10.79257229]
[1641445743423,27.66479,149.85,149.76,10.79257229]
[1641445743622,23.66479,149.85,149.76,17.18157229]
[1641445743922,23.66479,149.85,149.77,4.0]
[1641445744322,37.75442444,149.87,149.8,4.0]
[1641445744528,37.75442444,149.87,149.8,5.691]
[1641445745225,37.75442444,149.87,149.83,4.0]
[1641445745425,30.75442444,149.87,149.83,4.0]
[1641445745725,12.0610781,149.87,149.83,4.0]
[1641445746627,27.66479,149.88,149.79,34.55979]
[1641445746827,27.66479,149.88,149.82,6.79257229]
[1641445747135,34.33523659,149.84,149.74,56.61031035]
[1641445747730,34.33523659,149.84,149.72,9.78]
[1641445748127,4.0,149.8,149.72,9.78]
[1641445748326,27.66479,149.84,149.72,9.78]
[1641445748327,6.67200427,149.81,149.72,9.78]
[1641445748527,4.0,149.78,149.72,9.78]
[1641445748728,10.67334001,149.78,149.72,9.78]
[1641445748929,10.67334001,149.78,149.72,9.88]
[1641445749129,27.66479,149.77,149.72,9.88]
[1641445750629,27.66479,149.77,149.68,10.0]
[1641445751031,6.6713366,149.82,149.7,4.0]
[1641445751231,27.66479,149.81,149.7,7.086]
[1641445751632,34.3365717,149.81,149.7,7.086]
[1641445752330,38.3365717,149.81,149.7,7.086]
[1641445752536,34.3365717,149.81,149.7,7.086]
[1641445752933,4.0,149.8,149.7,7.086]
[1641445753133,27.66479,149.78,149.69,27.66479]
[1641445753334,34.33813001,149.78,149.69,27.66479]
[1641445753534,27.66479,149.78,149.69,27.66479]
[1641445754740,4.71707057,149.72,149.71,4.71707057]
[1641445755542,4.71707057,149.73,149.7,1.36861127]
[1641445756739,4.71707057,149.73,149.72,4.71681924]
[1641445757840,4.71707057,149.73,149.7,1.36861127]
[1641445758241,10.43407057,149.73,149.7,1.36861127]
[1641445759042,4.71707057,149.72,149.71,4.71733471]
[1641445759243,32.38186057,149.72,149.71,4.71733471]
[1641445760042,27.66479,149.72,149.66,1.36861127]
[1641445760442,4.71707057,149.73,149.66,1.36861127]
[1641445761042,3.3487835,149.75,149.72,4.71726358]
[1641445762143,3.3487835,149.76,149.73,4.71726358]
[1641445763348,3.3487835,149.77,149.73,4.71726358]
[1641445764449,3.3487835,149.77,149.74,4.71726358]
[1641445766050,3.3487835,149.77,149.72,4.71726358]
[1641445766951,3.3487835,149.77,149.73,4.71726358]
[1641445767751,15.41993212,149.79,149.75,4.71726358]
[1641445767952,15.41993212,149.79,149.75,10.10026358]
[1641445769053,15.41993212,149.79,149.75,4.71726358]
[1641445769454,19.41993212,149.79,149.75,4.71726358]
[1641445769654,4.0,149.79,149.75,4.71726358]
[1641445769855,19.41993212,149.8,149.75,4.71726358]
[1641445770057,4.0,149.78,149.75,4.71726358]
[1641445770257,4.0,149.79,149.75,4.71726358]
[1641445770454,4.0,149.77,149.71,6.79399216]
[1641445770653,6.67356268,149.77,149.68,8.16254916]
[1641445770853,10.67356268,149.77,149.68,8.16254916]
[1641445771053,6.67356268,149.77,149.68,8.16254916]
[1641445771254,4.0,149.75,149.68,8.16254916]
[1641445771453,27.66479,149.7,149.68,8.16254916]
[1641445772054,27.66479,149.7,149.65,11.18098949]
[1641445772055,27.66479,149.72,149.62,47.00832865]
[1641445772657,3.3487835,149.76,149.64,4.0]
[1641445772857,3.3487835,149.71,149.64,4.0]
[1641445773056,3.3487835,149.71,149.63,15.16854916]
[1641445773057,3.3487835,149.71,149.65,4.0]
[1641445773256,3.3487835,149.71,149.64,4.0]
[1641445773458,3.3487835,149.71,149.66,27.66479]
[1641445773658,3.3487835,149.71,149.66,33.55779]
[1641445773857,3.3487835,149.71,149.66,37.55779]
[1641445774059,12.07114862,149.75,149.68,4.0]
[1641445774259,12.07114862,149.75,149.66,33.55779]
[1641445774459,3.34924231,149.76,149.67,4.0]
[1641445774659,3.34924231,149.76,149.66,37.55779]
[1641445774860,3.34924231,149.76,149.66,33.55779]
[1641445775063,3.34924231,149.76,149.67,4.0]
[1641445775460,3.34924231,149.76,149.66,37.55779]
[1641445775661,4.0,149.77,149.66,33.55779]
[1641445775861,10.67356268,149.77,149.66,27.66479]
[1641445776060,10.67356268,149.77,149.67,6.79399216]
[1641445776663,4.0,149.75,149.67,6.79399216]
[1641445777465,31.66479,149.74,149.67,6.79399216]
[1641445778467,27.66479,149.74,149.67,6.79399216]
[1641445778668,4.0,149.7,149.61,64.2813]
[1641445778865,4.0,149.67,149.58,56.61031035]
[1641445779267,4.0,149.69,149.58,56.61031035]
[1641445779569,27.66479,149.64,149.58,56.61031035]
[1641445779967,27.66479,149.64,149.56,45.64204255]
[1641445781070,27.66479,149.66,149.57,6.79435414]
[1641445781271,31.66479,149.66,149.57,6.79435414]
[1641445781472,4.0,149.64,149.57,6.79435414]
[1641445781672,4.0,149.63,149.57,6.79435414]
[1641445781872,10.68024984,149.62,149.57,6.79435414]
[1641445782472,6.68024984,149.62,149.57,5.414e-05]
[1641445782673,4.0,149.58,149.57,5.414e-05]
[1641445783072,4.0,149.59,149.57,5.414e-05]
[1641445783271,4.0,149.58,149.57,5.414e-05]
[1641445783471,4.0,149.59,149.57,5.414e-05]
[1641445783673,27.66479,149.58,149.57,5.414e-05]
[1641445783871,27.66479,149.58,149.54,11.18289841]
[1641445784272,34.34615567,149.6,149.47,38.84768841]
[1641445784471,34.34615567,149.6,149.49,4.0]
[1641445784672,27.66479,149.6,149.47,42.84768841]
[1641445785076,77.09144984,149.62,149.49,4.0]
[1641445785280,77.09144984,149.62,149.49,9.097]
[1641445785475,77.09144984,149.62,149.49,5.097]
[1641445785674,104.75623984,149.62,149.5,31.66479]
[1641445785874,104.75623984,149.62,149.5,27.66479]
[1641445786075,94.07599,149.62,149.5,31.66479]
[1641445786276,94.07599,149.62,149.51,4.0]
[1641445786477,27.66479,149.62,149.53,4.0]
[1641445786676,27.66479,149.62,149.53,8.722]
[1641445787276,27.66479,149.62,149.53,4.722]
[1641445787478,27.66479,149.62,149.53,8.722]
[1641445787677,6.68024984,149.62,149.55,4.0]
[1641445787881,6.68024984,149.62,149.53,32.38679]
[1641445788078,6.68136567,149.6,149.53,32.38679]
[1641445788284,12.18436567,149.6,149.51,74.75619841]
[1641445788478,12.18436567,149.6,149.51,11.18289841]
[1641445788680,16.18436567,149.6,149.51,11.18289841]
[1641445789380,4.0,149.59,149.51,11.18289841]
[1641445789580,4.0,149.59,149.46,10.04]
[1641445789780,27.66479,149.55,149.47,27.66479]
[1641445791681,27.66479,149.55,149.47,38.84768841]
[1641445792485,4.0,149.54,149.47,11.18289841]
[1641445792884,6.68493883,149.52,149.47,11.18289841]
[1641445793083,6.68493883,149.52,149.46,11.18289841]
[1641445793482,10.68493883,149.52,149.46,11.18289841]
[1641445793683,10.68583272,149.5,149.46,11.18289841]
[1641445793882,27.66479,149.48,149.46,11.18289841]
[1641445794082,27.66479,149.48,149.41,27.66479]
[1641445795584,4.0,149.46,149.4,11.18289841]
[1641445795983,27.66479,149.48,149.4,11.18289841]
[1641445796183,31.66479,149.48,149.4,11.18289841]
[1641445796586,4.0,149.46,149.4,11.18289841]
[1641445796885,4.0,149.46,149.36,67.79320876]
[1641445797586,6.68873951,149.43,149.36,67.79320876]
[1641445797789,27.66479,149.4,149.36,67.79320876]
[1641445797989,37.36179,149.4,149.35,83.50340716]
[1641445798186,10.69120107,149.38,149.35,15.7101984]
[1641445798387,10.69232056,149.36,149.32,27.66479]
[1641445798588,17.54832056,149.36,149.32,27.66479]
[1641445798788,4.0,149.35,149.32,27.66479]
[1641445798990,4.0,149.34,149.31,94.99245214]
[1641445799188,4.0,149.35,149.31,94.99245214]
[1641445799792,27.66479,149.35,149.31,94.99245214]
[1641445799993,27.66479,149.35,149.3,27.66479]
[1641445800196,6.69052956,149.39,149.3,27.66479]
[1641445800397,6.69052956,149.39,149.3,32.54179]
[1641445800596,27.66479,149.4,149.3,36.54179]
[1641445801395,27.66479,149.4,149.31,4.0]
[1641445801795,27.66479,149.4,149.33,27.66479]
[1641445802295,27.66479,149.44,149.34,4.0]
[1641445802495,67.8264,149.45,149.34,4.0]
[1641445802696,6.68762121,149.46,149.34,4.0]
[1641445803097,6.68762121,149.46,149.35,4.0]
[1641445803296,6.68762121,149.46,149.36,4.0]
[1641445803999,6.68762121,149.46,149.39,4.0]
[1641445804200,6.68762121,149.46,149.4,4.0]
[1641445804398,6.68583272,149.5,149.4,4.0]
[1641445804599,6.68583272,149.5,149.42,4.0]
[1641445804898,62.5984,149.53,149.42,4.632]
[1641445805100,62.5984,149.53,149.42,8.632]
[1641445805298,41.73690927,149.52,149.42,4.632]
[1641445805500,6.68538575,149.51,149.39,71.6259]
[1641445805899,4.0,149.5,149.39,78.40386653]
[1641445806099,27.66479,149.5,149.4,27.66479]
[1641445806299,27.66479,149.5,149.4,31.66479]
[1641445807099,6.68538575,149.51,149.41,6.77796653]
[1641445807299,4.0,149.49,149.41,6.77796653]
[1641445807498,6.68695042,149.47,149.41,6.77796653]
[1641445807899,18.80862576,149.51,149.41,6.77796653]
[1641445808600,18.80862576,149.51,149.41,10.77796653]
[1641445808800,6.68516228,149.51,149.41,16.57796653]
[1641445809401,6.68516228,149.51,149.41,12.57796653]
[1641445809902,6.68516228,149.51,149.41,6.77796653]
[1641445810102,6.68516228,149.51,149.43,27.66479]
[1641445810904,6.68516228,149.51,149.44,6.77796653]
[1641445812106,90.26319,149.53,149.44,6.77796653]
[1641445815110,3.36320657,149.52,149.44,8.13862944]
[1641445815712,7.95620657,149.52,149.44,8.13862944]
[1641445816212,4.0,149.5,149.44,8.13862944]
[1641445816513,4.0,149.48,149.44,8.13862944]
[1641445816712,10.687174,149.47,149.44,2.944e-05]
[1641445817612,6.687174,149.47,149.44,2.944e-05]
[1641445818313,6.687174,149.47,149.41,11.16795831]
[1641445818516,6.687174,149.47,149.36,42.83274831]
[1641445819717,4.0,149.45,149.36,38.83274831]
[1641445820118,27.66479,149.45,149.36,38.83274831]
[1641445820315,31.66479,149.45,149.36,38.83274831]
[1641445820515,27.66479,149.45,149.36,38.83274831]
[1641445820818,31.66479,149.45,149.36,38.83274831]
[1641445821016,31.66479,149.45,149.36,11.16795831]
[1641445821220,10.69164882,149.37,149.33,10.36319534]
[1641445821417,6.69164882,149.37,149.33,10.36319534]
[1641445821818,10.69164882,149.37,149.25,94.99245214]
[1641445822117,27.66479,149.29,149.25,94.99245214]
[1641445823538,27.66479,149.29,149.22,15.68762933]
[1641445824620,27.66479,149.29,149.2,25.46762933]
[1641445824919,27.66479,149.29,149.2,29.46762933]
[1641445826220,27.66479,149.29,149.2,15.68762933]
[1641445826921,27.66479,149.29,149.19,92.90182933]
[1641445827523,36.49079,149.29,149.19,83.02182933]
[1641445827722,10.69545713,149.28,149.2,15.68762933]
[1641445828123,6.69545713,149.28,149.2,15.68762933]
[1641445828323,27.66479,149.22,149.2,15.68762933]
[1641445828926,72.59465713,149.28,149.2,19.68762933]
[1641445829124,6.69545713,149.28,149.2,24.16162933]
[1641445829526,6.69545713,149.28,149.2,20.16162933]
[1641445829725,6.69545713,149.28,149.2,4.474]
[1641445830026,27.66479,149.29,149.2,8.474]
[1641445830227,27.66479,149.29,149.21,4.0]
[1641445830426,21.66479,149.29,149.21,4.0]
[1641445830625,21.66479,149.29,149.22,4.0]
[1641445830827,21.66479,149.29,149.2,4.474]
[1641445831028,21.66479,149.29,149.24,4.0]
[1641445831225,21.66479,149.29,149.24,10.164]
[1641445831427,21.66479,149.29,149.24,6.164]
[1641445831626,27.66479,149.3,149.24,6.164]
[1641445832129,27.66479,149.3,149.25,56.74704325]
[1641445832930,27.66479,149.3,149.27,4.0]
[1641445833129,27.66479,149.33,149.27,9.743]
[1641445833329,27.66479,149.33,149.27,5.743]
[1641445833929,27.66479,149.33,149.24,6.164]
[1641445834129,38.30379,149.33,149.23,56.74704325]
[1641445834329,27.66479,149.26,149.24,56.74704325]
[1641445834529,33.81579,149.26,149.24,56.74704325]
[1641445834931,6.151,149.26,149.24,56.74704325]
[1641445835130,27.66479,149.28,149.22,4.0]
[1641445836031,27.66479,149.28,149.21,4.0]
[1641445836231,27.66479,149.28,149.22,4.0]
[1641445836530,4.72892027,149.31,149.22,6.975]
[1641445836732,21.66479,149.32,149.27,4.0]
[1641445836930,4.72892027,149.34,149.27,8.941]
[1641445837531,4.72892027,149.37,149.28,4.0]
[1641445837730,4.72892027,149.37,149.27,4.0]
[1641445838331,27.66479,149.35,149.27,4.0]
[1641445839132,27.66479,149.35,149.26,56.74704325]
[1641445839334,4.0,149.32,149.25,74.67468023]
[1641445839632,43.06111056,149.35,149.25,74.67468023]
[1641445839833,4.0,149.34,149.25,74.67468023]
[1641445840034,6.69366445,149.32,149.25,17.92763698]
[1641445840233,10.69366445,149.32,149.25,17.92763698]
[1641445840434,27.66479,149.28,149.25,17.92763698]
[1641445841735,27.66479,149.28,149.21,17.92763698]
[1641445842937,27.66479,149.28,149.21,74.67468023]
[1641445844041,27.66479,149.3,149.26,4.0]
[1641445844240,4.72892027,149.32,149.26,8.67]
[1641445844440,94.03179,149.37,149.26,36.33479]
[1641445844641,4.72941284,149.34,149.26,36.33479]
[1641445845044,4.72941284,149.34,149.26,32.33479]
[1641445845243,4.72941284,149.34,149.27,4.0]
[1641445845444,4.72941284,149.34,149.26,31.66479]
[1641445845843,94.03179,149.37,149.27,63.51437584]
[1641445846044,94.03179,149.37,149.27,67.51437584]
[1641445846945,94.03179,149.37,149.27,94.36230956]
[1641445847144,94.03179,149.37,149.27,90.36230956]
[1641445847344,94.03179,149.37,149.27,94.36230956]
[1641445847548,94.03179,149.37,149.33,4.0]
[1641445847745,27.66479,149.37,149.33,4.0]
[1641445848148,27.66479,149.39,149.33,4.0]
[1641445848346,41.73690927,149.45,149.33,4.0]
[1641445848546,27.66479,149.42,149.32,27.66479]
[1641445848745,27.66479,149.42,149.33,4.0]
[1641445850347,27.66479,149.42,149.33,10.76733259]
[1641445850547,4.0,149.41,149.33,6.76733259]
[1641445850748,4.0,149.4,149.33,6.76733259]
[1641445851147,4.0,149.41,149.33,6.76733259]
[1641445851550,4.0,149.4,149.32,17.92763698]
[1641445851848,4.0,149.41,149.32,17.92763698]
[1641445852547,27.66479,149.38,149.32,17.92763698]
[1641445852949,27.66479,149.42,149.32,17.92763698]
[1641445853147,27.66479,149.42,149.32,22.41063698]
[1641445855555,27.66479,149.42,149.36,4.0]
[1641445855752,34.35308214,149.44,149.36,10.806]
[1641445855952,27.66479,149.44,149.36,10.806]
[1641445856153,37.73690927,149.48,149.36,10.806]
[1641445856352,37.73690927,149.48,149.37,4.0]
[1641445856555,27.66479,149.47,149.37,27.66479]
[1641445856754,27.66479,149.47,149.37,97.21459]
[1641445857355,27.66479,149.47,149.38,4.0]
[1641445857555,27.66479,149.47,149.39,4.0]
[1641445857756,27.66479,149.49,149.46,4.0]
[1641445857958,44.4218481,149.52,149.46,6.321]
[1641445859167,44.4218481,149.52,149.44,31.66479]
[1641445859361,6.68493883,149.52,149.44,31.66479]
[1641445859761,6.68493883,149.52,149.44,27.66479]
[1641445859962,6.68493883,149.52,149.44,31.66479]
[1641445860165,6.68493883,149.52,149.44,27.66479]
[1641445860364,6.68493883,149.52,149.45,6.76733259]
[1641445860765,90.29079,149.54,149.45,6.76733259]
[1641445862765,90.29079,149.54,149.45,10.76733259]
[1641445863164,90.29079,149.54,149.45,6.76733259]
[1641445863367,12.1312603,149.53,149.45,6.76733259]
[1641445864665,12.1312603,149.53,149.45,10.76733259]
[1641445864864,12.1312603,149.53,149.45,6.76733259]
[1641445865664,12.1312603,149.53,149.45,10.76733259]
[1641445866466,90.29079,149.54,149.45,10.76733259]
[1641445866666,90.29079,149.54,149.45,6.76733259]
[1641445866865,90.29079,149.54,149.47,27.66479]
[1641445867067,27.66479,149.54,149.47,27.66479]
[1641445869369,19.66479,149.54,149.47,27.66479]
[1641445869572,19.66479,149.54,149.48,6.76672032]
[1641445869976,37.73690927,149.58,149.48,6.76672032]
[1641445870170,37.73690927,149.58,149.48,10.76672032]
[1641445870373,33.73690927,149.58,149.48,10.76672032]
[1641445870771,6.68136567,149.6,149.49,4.0]
[1641445870973,27.66479,149.6,149.52,27.66479]
[1641445871974,27.66479,149.6,149.52,31.66479]
[1641445872178,66.6284,149.62,149.53,4.0]
[1641445872773,66.6284,149.62,149.52,31.66479]
[1641445872974,66.6284,149.62,149.53,6.76717996]
[1641445874176,70.6284,149.62,149.53,6.76717996]
[1641445874377,4.0,149.61,149.53,6.76717996]
[1641445874576,10.803,149.61,149.53,6.76717996]
[1641445874777,18.92342035,149.61,149.53,6.76717996]
[1641445874976,27.66479,149.6,149.53,6.76717996]
[1641445875777,12.12042035,149.61,149.53,6.76717996]
[1641445876177,66.6284,149.62,149.51,10.76717996]
[1641445877079,66.6284,149.62,149.53,27.66479]
[1641445877280,12.12063957,149.61,149.53,27.66479]
[1641445877478,12.12063957,149.61,149.56,4.0]
[1641445877683,12.12063957,149.61,149.56,5.647]
[1641445878381,8.12063957,149.61,149.56,5.647]
[1641445878582,4.12063957,149.61,149.56,5.647]
[1641445878780,4.12063957,149.61,149.56,9.647]
[1641445878983,4.12063957,149.61,149.6,27.66479]
[1641445879182,6.67913438,149.65,149.6,27.66479]
[1641445879183,121.47504325,149.67,149.6,31.66479]
[1641445879382,64.728,149.67,149.6,27.66479]
[1641445879783,44.83697764,149.68,149.6,27.66479]
[1641445879784,17.17218764,149.68,149.6,27.66479]
[1641445880183,17.17218764,149.68,149.6,31.66479]
[1641445880384,84.41183325,149.7,149.62,4.0]
[1641445880583,27.66479,149.7,149.62,6.385]
[1641445880985,27.66479,149.7,149.64,27.66479]
[1641445881585,44.82996673,149.7,149.64,27.66479]
[1641445881785,17.16517673,149.7,149.64,27.66479]
[1641445882785,67.9463,149.71,149.64,27.66479]
[1641445882985,31.66479,149.74,149.64,27.66479]
[1641445883886,31.66479,149.74,149.6,27.66479]
[1641445883887,4.0,149.7,149.6,27.66479]
[1641445884085,6.6771275,149.69,149.6,27.66479]
[1641445884485,4.0,149.7,149.6,27.66479]
[1641445884684,10.67623594,149.71,149.6,27.66479]
[1641445884885,4.0,149.7,149.6,27.66479]
[1641445885088,27.66479,149.66,149.57,91.22579]
[1641445885284,4.0,149.65,149.57,27.66479]
[1641445885484,27.66479,149.66,149.57,27.66479]
[1641445885887,4.0,149.62,149.55,67.0437]
[1641445886086,6.609,149.62,149.54,93.67829]
[1641445887189,27.66479,149.66,149.57,4.0]
[1641445887387,27.66479,149.66,149.57,9.679]